fUST/lending_fUST_20240701
["ID","MTS","AMOUNT","RATE_DAILY","PERIOD"]
[330775844,1719773347180,-300.0,0.00015046,2]
[330775845,1719773347210,-159.2769432,0.00015047,2]
[330775846,1719773347239,-3.61129573,0.00015047,2]
[330775847,1719773347279,-496.38870427,0.00015047,2]
[330775848,1719773347309,-266.49953466,0.00015047,2]
[330775852,1719773371986,-335.37915607,0.00015047,2]
[330775853,1719773372023,-458.02461241,0.00015047,2]
[330775854,1719773372235,-41.97538759,0.00015047,2]
[330775855,1719773372285,-500.0,0.00015047,2]
[330775856,1719773372316,-251.42838089,0.00015047,2]
[330775857,1719773372389,-250.30493242,0.00015047,2]
[330775858,1719773372426,-140.97325092,0.00015047,2]
[330775859,1719773388807,157.52863176,0.00014948,2]
[330775860,1719773390764,157.52863173,0.0001495,2]
[330775861,1719773392928,157.52863173,0.00014951,2]
[330775864,1719773394819,157.52863173,0.00014953,2]
[330775865,1719773396754,157.52863173,0.00014954,2]
[330775866,1719773396941,-359.02674908,0.00015047,2]
[330775867,1719773396970,-473.93873381,0.00015047,2]
[330775868,1719773397005,-26.06126619,0.00015047,2]
[330775869,1719773397036,-500.0,0.00015047,2]
[330775870,1719773397066,-171.80045941,0.00015047,2]
[330775890,1719773432000,-300.0,0.00015046,2]
[330775892,1719773432009,-300.0,0.00015046,2]
[330775894,1719773432018,-103.7636435,0.00015046,2]
[330775896,1719773432030,-396.2363565,0.00015046,2]
[330775898,1719773432039,-20.4369508,0.00015047,2]
[330775900,1719773432051,-307.76258979,0.00015047,2]
[330775902,1719773432060,-500.0,0.00015047,2]
[330775904,1719773432070,-192.23741021,0.00015047,2]
[330775906,1719773432081,-307.76258979,0.00015047,2]
[330775908,1719773432090,-158.23741021,0.00015047,2]
[330776157,1719773439743,-341.76258979,0.00015047,2]
[330776158,1719773439754,-500.0,0.00015047,2]
[330776159,1719773439765,-248.04608921,0.00015047,2]
[330776160,1719773439778,-294.50391079,0.00015047,2]
[330776161,1719773439788,-500.0,0.00015047,2]
[330776162,1719773439798,-497.23038477,0.00015047,2]
[330776163,1719773439808,-330.52327294,0.00015047,2]
[330776164,1719773439821,-169.47672706,0.00015047,2]
[330776165,1719773439831,-500.0,0.00015047,2]
[330776166,1719773439842,-200.21717065,0.00015047,2]
[330776167,1719773439852,-500.0,0.00015047,2]
[330776168,1719773439862,-1309.5,0.00015047,2]
[330776169,1719773439872,-500.0,0.00015047,2]
[330776170,1719773439883,-500.0,0.00015047,2]
[330776171,1719773439893,-500.0,0.00015047,2]
[330776172,1719773439903,-500.0,0.00015047,2]
[330776173,1719773439913,-500.0,0.00015047,2]
[330776174,1719773439923,-500.0,0.00015047,2]
[330776176,1719773439933,-2274.48,0.00015047,2]
[330776177,1719773439944,-500.0,0.00015047,2]
[330776178,1719773439954,-824.66,0.00015047,2]
[330776179,1719773439965,-500.0,0.00015047,2]
[330776180,1719773439975,-500.0,0.00015047,2]
[330776181,1719773439986,-690.81,0.00015047,2]
[330776183,1719773439996,-500.0,0.00015047,2]
[330776184,1719773440006,-2142.62,0.00015047,2]
[330776185,1719773440016,-550.43610066,0.00015047,2]
[330776186,1719773440025,-18142.17,0.00015047,2]
[330776187,1719773440035,-500.0,0.00015047,2]
[330776188,1719773440044,-500.0,0.00015047,2]
[330776189,1719773440054,-18967.45,0.00015047,2]
[330776190,1719773440064,-779.73,0.00015047,2]
[330776191,1719773440073,-2624.39,0.00015047,2]
[330776192,1719773440083,-500.0,0.00015047,2]
[330776193,1719773440093,-4663.57,0.00015047,2]
[330776194,1719773440102,-500.0,0.00015047,2]
[330776195,1719773440112,-1035.07,0.00015047,2]
[330776196,1719773440122,-500.0,0.00015047,2]
[330776197,1719773440131,-501.72250551,0.00015047,2]
[330776198,1719773440141,-743.4,0.00015047,2]
[330776199,1719773440151,-500.0,0.00015047,2]
[330776200,1719773440161,-500.0,0.00015047,2]
[330776201,1719773440170,-500.0,0.00015047,2]
[330776202,1719773440180,-7980.66,0.00015047,2]
[330776203,1719773440189,-500.0,0.00015047,2]
[330776204,1719773440201,-500.0,0.00015047,2]
[330776205,1719773440211,-500.0,0.00015047,2]
[330776206,1719773440220,-604.08,0.00015047,2]
[330776207,1719773440231,-1943.12,0.00015047,2]
[330776208,1719773440240,-500.0,0.00015047,2]
[330776209,1719773440249,-500.0,0.00015048,2]
[330776210,1719773440260,-500.0,0.00015048,2]
[330776211,1719773440269,-1139.58,0.00015048,2]
[330776212,1719773440279,-755.09,0.00015048,2]
[330776213,1719773440289,-2479.58,0.00015048,2]
[330776215,1719773440299,-500.0,0.00015048,2]
[330776217,1719773440309,-11991.55,0.00015048,2]
[330776219,1719773440319,-5082.87,0.00015048,2]
[330776221,1719773440328,-3940.45,0.00015048,2]
[330776222,1719773440338,-4904.51,0.00015048,2]
[330776224,1719773440348,-2504.58,0.00015048,2]
[330776226,1719773440358,-500.0,0.00015048,2]
[330776227,1719773440368,-500.0,0.00015048,2]
[330776228,1719773440378,-2214.94,0.00015048,2]
[330776229,1719773440387,-2116.6,0.00015048,2]
[330776230,1719773440397,-7044.52,0.00015048,2]
[330776231,1719773440407,-500.0,0.00015048,2]
[330776232,1719773440416,-614.69,0.00015048,2]
[330776233,1719773440426,-813.91,0.00015048,2]
[330776234,1719773440435,-528.67,0.00015048,2]
[330776235,1719773440445,-500.0,0.00015048,2]
[330776236,1719773440454,-1907.26,0.00015049,2]
[330776237,1719773440464,-500.0,0.00015049,2]
[330776238,1719773440474,-500.0,0.00015049,2]
[330776239,1719773440484,-500.0,0.00015049,2]
[330776240,1719773440494,-500.0,0.00015049,2]
[330776241,1719773440504,-500.0,0.00015049,2]
[330776242,1719773440513,-2302.09,0.00015049,2]
[330776243,1719773440523,-500.0,0.00015049,2]
[330776244,1719773440532,-500.0,0.00015049,2]
[330776245,1719773440542,-500.0,0.00015049,2]
[330776246,1719773440555,-2227.38,0.00015049,2]
[330776247,1719773440567,-2728.97,0.00015049,2]
[330776248,1719773440577,-661.86,0.00015049,2]
[330776249,1719773440587,-500.0,0.00015049,2]
[330776250,1719773440597,-506.8484284,0.00015049,2]
[330776251,1719773440610,-912.07,0.00015049,2]
[330776252,1719773440619,-1634.84,0.00015049,2]
[330776253,1719773440629,-500.0,0.00015049,2]
[330776254,1719773440642,-506.28796001,0.00015049,2]
[330776255,1719773440652,-615.0,0.00015049,2]
[330776256,1719773440662,-2518.22,0.00015049,2]
[330776257,1719773440673,-500.0,0.00015049,2]
[330776258,1719773440682,-500.0,0.00015049,2]
[330776259,1719773440692,-1397.79,0.00015049,2]
[330776260,1719773440704,-500.0,0.00015049,2]
[330776261,1719773440713,-852.01,0.00015049,2]
[330776262,1719773440722,-500.0,0.00015049,2]
[330776263,1719773440852,-720.15,0.00015049,2]
[330776264,1719773440862,-500.0,0.00015049,2]
[330776265,1719773440871,-961.27,0.00015049,2]
[330776266,1719773440880,-500.0,0.00015049,2]
[330776267,1719773440889,-500.0,0.00015049,2]
[330776268,1719773440899,-500.0,0.00015049,2]
[330776269,1719773440907,-500.0,0.00015049,2]
[330776270,1719773440917,-500.0,0.00015049,2]
[330776271,1719773440926,-773.44,0.00015049,2]
[330776272,1719773440935,-656.52,0.00015049,2]
[330776273,1719773440945,-500.0,0.00015049,2]
[330776274,1719773440955,-500.0,0.00015049,2]
[330776275,1719773440964,-504.70711968,0.00015049,2]
[330776276,1719773440973,-757.54,0.00015049,2]
[330776277,1719773440982,-500.0,0.00015049,2]
[330776278,1719773440991,-500.0,0.00015049,2]
[330776279,1719773441000,-500.0,0.00015049,2]
[330776280,1719773441009,-500.0,0.00015049,2]
[330776281,1719773441018,-1183.03,0.00015049,2]
[330776282,1719773441027,-500.0,0.00015049,2]
[330776283,1719773441036,-500.0,0.00015049,2]
[330776284,1719773441045,-838.51,0.00015049,2]
[330776285,1719773441054,-1646.92,0.00015049,2]
[330776286,1719773441063,-500.0,0.00015049,2]
[330776287,1719773441072,-500.0,0.00015049,2]
[330776288,1719773441081,-738.5,0.00015049,2]
[330776289,1719773441090,-500.0,0.00015049,2]
[330776290,1719773441099,-506.44,0.00015049,2]
[330776291,1719773441109,-870.69,0.00015049,2]
[330776292,1719773441118,-500.0,0.00015049,2]
[330776293,1719773441127,-823.2,0.00015049,2]
[330776294,1719773441135,-500.0,0.00015049,2]
[330776295,1719773441144,-500.0,0.00015049,2]
[330776296,1719773441153,-500.0,0.00015049,2]
[330776297,1719773441162,-1532.64,0.00015049,2]
[330776298,1719773441172,-1044.64,0.00015049,2]
[330776299,1719773441181,-500.0,0.00015049,2]
[330776300,1719773441190,-1828.93,0.00015049,2]
[330776301,1719773441202,-984.32,0.00015049,2]
[330776302,1719773441211,-500.0,0.00015049,2]
[330776303,1719773441220,-500.0,0.00015049,2]
[330776304,1719773441229,-11916.96,0.00015049,2]
[330776305,1719773441238,-500.0,0.00015049,2]
[330776306,1719773441247,-500.0,0.00015049,2]
[330776307,1719773441256,-577.34,0.00015049,2]
[330776308,1719773441266,-500.0,0.00015049,2]
[330776309,1719773441275,-500.0,0.00015049,2]
[330776310,1719773441285,-500.0,0.00015049,2]
[330776311,1719773441295,-1913.78,0.00015049,2]
[330776312,1719773441305,-500.0,0.00015049,2]
[330776313,1719773441315,-500.0,0.00015049,2]
[330776314,1719773441325,-979.26,0.00015049,2]
[330776315,1719773441334,-500.0,0.00015049,2]
[330776316,1719773441343,-1337.25,0.00015049,2]
[330776317,1719773441353,-500.0,0.00015049,2]
[330776318,1719773441362,-500.0,0.00015049,2]
[330776319,1719773441372,-500.0,0.00015049,2]
[330776320,1719773441382,-500.0,0.00015049,2]
[330776321,1719773441391,-2390.63,0.00015049,2]
[330776322,1719773441400,-76499.60806358,0.0001505,2]
[330776323,1719773441410,-530.94,0.0001505,2]
[330776324,1719773441420,-500.0,0.0001505,2]
[330776325,1719773441429,-500.0,0.0001505,2]
[330776326,1719773441439,-355.64582305,0.0001505,2]
[330776327,1719773441450,-521.16828657,0.0001505,2]
[330776328,1719773441458,-500.0,0.0001505,2]
[330776329,1719773441467,-500.0,0.0001505,2]
[330776330,1719773441477,-500.0,0.0001505,2]
[330776331,1719773441486,-501.28598276,0.0001505,2]
[330776332,1719773441496,-500.0,0.0001505,2]
[330776333,1719773441506,-500.0,0.0001505,2]
[330776334,1719773441516,-500.0,0.0001505,2]
[330776335,1719773441525,-500.0,0.0001505,2]
[330776336,1719773441535,-500.0,0.0001505,2]
[330776337,1719773441544,-500.0,0.0001505,2]
[330776338,1719773441554,-573.86,0.0001505,2]
[330776339,1719773441567,-458.17157643,0.0001505,2]
[330776340,1719773441576,-500.0,0.0001505,2]
[330776341,1719773441586,-500.0,0.0001505,2]
[330776342,1719773441595,-500.0,0.0001505,2]
[330776343,1719773441604,-508.18186603,0.0001505,2]
[330776344,1719773441614,-1523.29,0.0001505,2]
[330776345,1719773441624,-504.59801319,0.0001505,2]
[330776346,1719773441633,-504.34795031,0.0001505,2]
[330776347,1719773441647,-500.0,0.0001505,2]
[330776348,1719773441657,-568.83,0.0001505,2]
[330776349,1719773441668,-500.0,0.0001505,2]
[330776350,1719773441677,-500.0,0.0001505,2]
[330776351,1719773441687,-500.0,0.0001505,2]
[330776352,1719773441697,-500.0,0.0001505,2]
[330776353,1719773441706,-743.5,0.0001505,2]
[330776354,1719773441715,-500.0,0.0001505,2]
[330776355,1719773441724,-500.0,0.0001505,2]
[330776356,1719773441733,-500.0,0.0001505,2]
[330776357,1719773441742,-545.97,0.0001505,2]
[330776358,1719773441751,-500.0,0.0001505,2]
[330776359,1719773441761,-500.0,0.0001505,2]
[330776360,1719773441771,-500.0,0.0001505,2]
[330776361,1719773441780,-500.0,0.0001505,2]
[330776362,1719773441790,-500.0,0.0001505,2]
[330776363,1719773441799,-500.0,0.0001505,2]
[330776364,1719773441809,-500.0,0.0001505,2]
[330776365,1719773441818,-500.0,0.0001505,2]
[330776366,1719773441828,-500.0,0.0001505,2]
[330776367,1719773441837,-971.05,0.0001505,2]
[330776368,1719773441846,-866.02,0.0001505,2]
[330776369,1719773441856,-589.61,0.0001505,2]
[330776370,1719773441865,-648.75,0.0001505,2]
[330776371,1719773441875,-500.0,0.0001505,2]
[330776372,1719773441884,-500.0,0.0001505,2]
[330776373,1719773441895,-500.0,0.0001505,2]
[330776374,1719773441904,-1031.27,0.0001505,2]
[330776375,1719773441913,-500.0,0.0001505,2]
[330776376,1719773441923,-500.0,0.0001505,2]
[330776377,1719773441933,-500.0,0.0001505,2]
[330776378,1719773441942,-500.0,0.0001505,2]
[330776379,1719773441953,-500.0,0.0001505,2]
[330776380,1719773441963,-500.0,0.0001505,2]
[330776381,1719773441972,-500.0,0.0001505,2]
[330776382,1719773441981,-500.0,0.0001505,2]
[330776383,1719773441991,-850.49,0.0001505,2]
[330776384,1719773442000,-500.0,0.0001505,2]
[330776385,1719773442010,-500.0,0.0001505,2]
[330776386,1719773442020,-500.0,0.0001505,2]
[330776387,1719773442029,-500.0,0.0001505,2]
[330776388,1719773442038,-429.36164715,0.0001505,2]
[330776389,1719773442048,-500.0,0.0001505,2]
[330776390,1719773442057,-500.0,0.0001505,2]
[330776391,1719773442066,-500.0,0.0001505,2]
[330776392,1719773442077,-500.0,0.0001505,2]
[330776393,1719773442086,-655.1,0.0001505,2]
[330776394,1719773442096,-513.83,0.0001505,2]
[330776395,1719773442105,-500.0,0.0001505,2]
[330776396,1719773442114,-500.0,0.0001505,2]
[330776397,1719773442124,-500.0,0.0001505,2]
[330776398,1719773442133,-500.0,0.0001505,2]
[330776399,1719773442142,-500.0,0.0001505,2]
[330776400,1719773442152,-1902.57,0.0001505,2]
[330776401,1719773442161,-1043.75,0.0001505,2]
[330776402,1719773442171,-500.0,0.0001505,2]
[330776403,1719773442181,-500.0,0.0001505,2]
[330776404,1719773442191,-481.97794283,0.0001505,2]
[330776405,1719773442202,-313.14567912,0.0001505,2]
[330776406,1719773442212,-500.0,0.0001505,2]
[330776407,1719773442222,-995.26,0.0001505,2]
[330776408,1719773442231,-500.0,0.0001505,2]
[330776409,1719773442241,-500.0,0.0001505,2]
[330776410,1719773442251,-500.0,0.0001505,2]
[330776411,1719773442260,-500.0,0.0001505,2]
[330776412,1719773442270,-500.0,0.0001505,2]
[330776413,1719773442280,-500.0,0.0001505,2]
[330776414,1719773442290,-725.81,0.0001505,2]
[330776415,1719773442300,-500.0,0.0001505,2]
[330776416,1719773442309,-516.92,0.0001505,2]
[330776417,1719773442320,-500.0,0.0001505,2]
[330776418,1719773442330,-1415.39,0.0001505,2]
[330776419,1719773442340,-500.0,0.0001505,2]
[330776420,1719773442350,-500.0,0.0001505,2]
[330776421,1719773442360,-286.48561354,0.0001505,2]
[330776422,1719773442369,-500.0,0.0001505,2]
[330776423,1719773442379,-619.52,0.0001505,2]
[330776424,1719773442388,-369.21,0.0001505,2]
[330776425,1719773442398,-603.57,0.0001505,2]
[330776426,1719773442407,-500.0,0.0001505,2]
[330776427,1719773442417,-1689.03,0.0001505,2]
[330776428,1719773442426,-500.0,0.0001505,2]
[330776430,1719773442435,-500.0,0.0001505,2]
[330776431,1719773442446,-500.0,0.0001505,2]
[330776432,1719773442455,-500.0,0.0001505,2]
[330776433,1719773442464,-500.0,0.0001505,2]
[330776434,1719773442474,-1543.69,0.0001505,2]
[330776435,1719773442484,-500.0,0.0001505,2]
[330776436,1719773442495,-500.0,0.0001505,2]
[330776437,1719773442505,-500.0,0.0001505,2]
[330776438,1719773442515,-504.08202438,0.0001505,2]
[330776439,1719773442524,-500.0,0.0001505,2]
[330776440,1719773442534,-500.0,0.0001505,2]
[330776441,1719773442543,-500.0,0.0001505,2]
[330776442,1719773442555,-500.0,0.0001505,2]
[330776443,1719773442565,-501.64471739,0.0001505,2]
[330776444,1719773442575,-500.77469076,0.0001505,2]
[330776445,1719773442585,-500.0,0.0001505,2]
[330776446,1719773442596,-500.0,0.0001505,2]
[330776447,1719773442605,-500.0,0.0001505,2]
[330776448,1719773442614,-501.10726315,0.0001505,2]
[330776449,1719773442624,-501.07835622,0.0001505,2]
[330776450,1719773442636,-497.58966445,0.0001505,2]
[330776451,1719773442646,-500.0,0.0001505,2]
[330776452,1719773442753,-500.0,0.0001505,2]
[330776453,1719773442764,-883.07,0.0001505,2]
[330776455,1719773442774,-500.0,0.0001505,2]
[330776457,1719773442785,-500.0,0.0001505,2]
[330776459,1719773442795,-500.0,0.0001505,2]
[330776461,1719773442804,-500.0,0.0001505,2]
[330776464,1719773442814,-500.0,0.0001505,2]
[330776467,1719773442824,-500.0,0.0001505,2]
[330776470,1719773442834,-500.0,0.0001505,2]
[330776472,1719773442844,-500.0,0.0001505,2]
[330776474,1719773442853,-500.0,0.0001505,2]
[330776475,1719773442863,-500.0,0.0001505,2]
[330776476,1719773442872,-500.9947283,0.0001505,2]
[330776477,1719773442882,-1136.18,0.0001505,2]
[330776478,1719773442891,-500.0,0.0001505,2]
[330776479,1719773442901,-500.0,0.0001505,2]
[330776480,1719773442911,-500.0,0.0001505,2]
[330776481,1719773442921,-500.0,0.0001505,2]
[330776482,1719773442931,-691.53,0.0001505,2]
[330776483,1719773442941,-500.0,0.0001505,2]
[330776484,1719773442952,-500.91677921,0.0001505,2]
[330776485,1719773442962,-968.01,0.0001505,2]
[330776486,1719773442971,-500.0,0.0001505,2]
[330776487,1719773442981,-500.0,0.0001505,2]
[330776488,1719773442991,-500.0,0.0001505,2]
[330776489,1719773443001,-500.0,0.0001505,2]
[330776490,1719773443011,-500.97532239,0.0001505,2]
[330776491,1719773443020,-500.0,0.0001505,2]
[330776492,1719773443030,-500.0,0.0001505,2]
[330776493,1719773443040,-513.4056479,0.0001505,2]
[330776494,1719773443050,-881.7,0.0001505,2]
[330776495,1719773443059,-500.0,0.0001505,2]
[330776496,1719773443070,-500.0,0.0001505,2]
[330776497,1719773443079,-1432.03,0.0001505,2]
[330776498,1719773443089,-501.05769785,0.0001505,2]
[330776499,1719773443098,-500.0,0.0001505,2]
[330776500,1719773443108,-500.0,0.0001505,2]
[330776501,1719773443117,-500.0,0.0001505,2]
[330776502,1719773443127,-544.97,0.0001505,2]
[330776503,1719773443136,-662.06,0.0001505,2]
[330776504,1719773443146,-501.8330513,0.0001505,2]
[330776505,1719773443156,-1166.78,0.0001505,2]
[330776506,1719773443165,-500.0,0.0001505,2]
[330776507,1719773443174,-500.0,0.0001505,2]
[330776508,1719773443183,-500.0,0.0001505,2]
[330776510,1719773443192,-500.0,0.0001505,2]
[330776512,1719773443202,-500.0,0.0001505,2]
[330776514,1719773443212,-502.16022671,0.0001505,2]
[330776515,1719773443222,-500.0,0.0001505,2]
[330776516,1719773443232,-500.0,0.0001505,2]
[330776517,1719773443241,-500.0,0.0001505,2]
[330776518,1719773443252,-500.0,0.00015051,2]
[330776519,1719773443262,-500.0,0.00015051,2]
[330776520,1719773443271,-500.0,0.00015051,2]
[330776521,1719773443281,-500.0,0.00015051,2]
[330776522,1719773443290,-500.0,0.00015051,2]
[330776523,1719773443300,-500.0,0.00015051,2]
[330776524,1719773443310,-511.44837784,0.00015052,2]
[330776525,1719773443320,-500.0,0.00015052,2]
[330776526,1719773443329,-500.0,0.00015052,2]
[330776527,1719773443339,-500.0,0.00015052,2]
[330776528,1719773443348,-500.0,0.00015052,2]
[330776529,1719773443358,-500.0,0.00015052,2]
[330776530,1719773443367,-500.0,0.00015052,2]
[330776531,1719773443376,-16277.6,0.00015052,2]
[330776532,1719773443386,-589.7,0.00015052,2]
[330776533,1719773443395,-546.66,0.00015052,2]
[330776534,1719773443404,-539.59,0.00015053,2]
[330776535,1719773443414,-2166.84,0.00015053,2]
[330776536,1719773443423,-9135.47,0.00015054,2]
[330776537,1719773443433,-292.863491,0.00015054,2]
[330776538,1719773443442,-1881.37,0.00015054,2]
[330776539,1719773443453,-500.0,0.00015054,2]
[330776540,1719773443462,-1334.47,0.00015054,2]
[330776541,1719773443471,-1374.46,0.00015054,2]
[330776542,1719773443481,-15209.01,0.00015054,2]
[330776543,1719773443491,-248119.25980807,0.00015059,2]
[330776544,1719773443501,-153.0,0.00015392,2]
[330776545,1719773443510,-153.0,0.00015392,2]
[330776546,1719773443520,-153.0,0.00015392,2]
[330776547,1719773443529,-153.0,0.00015392,2]
[330776548,1719773443539,-153.0,0.00015392,2]
[330776549,1719773443549,-153.0,0.00015392,2]
[330776550,1719773443563,-500.0,0.00015594,2]
[330776551,1719773443574,-500.0,0.00015595,2]
[330776552,1719773443584,-500.0,0.00015595,2]
[330776553,1719773443594,-500.0,0.00015595,2]
[330776554,1719773443604,-500.0,0.00015595,2]
[330776555,1719773443614,-500.0,0.00015595,2]
[330776556,1719773443624,-500.0,0.00015595,2]
[330776558,1719773443635,-500.0,0.00015595,2]
[330776560,1719773443646,-542.55,0.00015595,2]
[330776562,1719773443656,-500.0,0.00015595,2]
[330776563,1719773443665,-500.0,0.00015595,2]
[330776564,1719773443675,-1309.5,0.00015595,2]
[330776565,1719773443684,-500.0,0.00015595,2]
[330776566,1719773443694,-500.0,0.00015595,2]
[330776567,1719773443707,-500.0,0.00015595,2]
[330776568,1719773443716,-500.0,0.00015595,2]
[330776569,1719773443725,-2274.48,0.00015595,2]
[330776570,1719773443736,-500.0,0.00015595,2]
[330776571,1719773443746,-824.66,0.00015595,2]
[330776572,1719773443756,-500.0,0.00015595,2]
[330776573,1719773443766,-551.07956129,0.00015595,2]
[330776574,1719773443775,-690.81,0.00015595,2]
[330776575,1719773443784,-500.0,0.00015595,2]
[330776576,1719773443794,-2142.62,0.00015595,2]
[330776577,1719773443804,-18142.17,0.00015595,2]
[330776578,1719773443813,-500.0,0.00015595,2]
[330776579,1719773443822,-500.0,0.00015595,2]
[330776580,1719773443832,-18967.45,0.00015595,2]
[330776581,1719773443842,-779.73,0.00015595,2]
[330776582,1719773443851,-2624.39,0.00015595,2]
[330776583,1719773443861,-500.0,0.00015595,2]
[330776584,1719773443870,-4000.86694733,0.00015595,2]
[330776585,1719773444639,-500.0,0.00015047,2]
[330776586,1719773444651,-500.0,0.00015049,2]
[330776587,1719773444662,-662.70305267,0.00015595,2]
[330776588,1719773444672,-500.0,0.00015595,2]
[330776589,1719773444681,-1035.07,0.00015595,2]
[330776590,1719773444691,-500.0,0.00015595,2]
[330776591,1719773444701,-743.4,0.00015595,2]
[330776592,1719773444711,-500.0,0.00015595,2]
[330776593,1719773444720,-500.0,0.00015595,2]
[330776594,1719773444730,-500.0,0.00015595,2]
[330776595,1719773444739,-4058.94748333,0.00015595,2]
[330776596,1719773444751,-3921.71251667,0.00015595,2]
[330776597,1719773444762,-500.0,0.00015595,2]
[330776598,1719773444771,-30.93696463,0.00015595,2]
[330776599,1719773444783,-469.06303537,0.00015595,2]
[330776600,1719773444793,-604.08,0.00015595,2]
[330776601,1719773444803,-1943.12,0.00015595,2]
[330776602,1719773444812,-500.0,0.00015595,2]
[330776603,1719773444822,-500.0,0.00015595,2]
[330776604,1719773444831,-1139.58,0.00015596,2]
[330776605,1719773444840,-755.09,0.00015596,2]
[330776606,1719773444850,-2479.58,0.00015596,2]
[330776607,1719773444859,-500.0,0.00015596,2]
[330776608,1719773444868,-11991.55,0.00015596,2]
[330776609,1719773444878,-5082.87,0.00015596,2]
[330776610,1719773444888,-3940.45,0.00015596,2]
[330776611,1719773444898,-3299.68577566,0.00015596,2]
[330776648,1719773446412,-502.05539134,0.00015047,2]
[330776649,1719773446422,-500.0,0.00015047,2]
[330776651,1719773446431,-500.0,0.00015049,2]
[330776653,1719773446440,-638.68725167,0.00015595,2]
[330776655,1719773446450,-1604.82422434,0.00015596,2]
[330776656,1719773446459,-547.45833318,0.00015596,2]
[330776658,1719773490006,321.1,0.00010959,2]
[330776659,1719773540939,155.02402872,0.00014999,2]
[330776660,1719773544672,576.82644608,0.00014954,2]
[330776661,1719773548935,207.48571918,0.00014999,2]
[330776663,1719773593742,1817.32415239,0.00014947,2]
[330776664,1719773781589,257.09844506,0.00014946,2]
[330776665,1719773785582,24900.0,0.00014048,2]
[330776666,1719773796955,251.500528,0.00014048,2]
[330776667,1719773874099,1590.15863335,0.00014946,2]
[330776668,1719773943029,1795.75646349,0.00014999,2]
[330776669,1719773951080,1160.46799191,0.00014999,2]
[330776670,1719773966821,693.75936314,0.00014999,2]
[330776671,1719773985692,1103.20005274,0.00015,2]
[330776672,1719773987252,565.7746747,0.00014999,2]
[330776673,1719774009482,596.52889442,0.00014999,2]
[330776674,1719774042773,642.82193471,0.00014999,2]
[330776675,1719774055688,208.3392434,0.00014999,2]
[330776677,1719774133858,401.7459215,0.00014999,2]
[330776678,1719774133903,1284.76673272,0.00014999,2]
[330776679,1719774151691,457.57827588,0.00014999,2]
[330776680,1719774159434,1391.38880419,0.00014945,2]
[330776682,1719774189971,448.16240316,0.00014999,2]
[330776683,1719774199221,160.49062556,0.00014999,2]
[330776684,1719774244234,1000.0,0.00015,15]
[330776685,1719774246986,286.45866748,0.00014999,2]
[330776687,1719774322942,4062.7188064,0.00014046,2]
[330776689,1719774439793,1217.46520364,0.00014944,2]
[330776690,1719774522684,-300.0,0.00015043,2]
[330776691,1719774522714,-300.0,0.00015043,2]
[330776692,1719774522744,-145.49268256,0.00015043,2]
[330776693,1719774522787,-346.02771917,0.00015043,2]
[330776694,1719774547561,-300.0,0.00015042,2]
[330776695,1719774547593,-300.0,0.00015042,2]
[330776696,1719774547625,-167.3230906,0.00015043,2]